[Event "*** Titled Tuesday Blitz"]
[Site "Chess.com"]
[Date "2020.05.05"]
[Round "5"]
[White "Sweafty"]
[Black "platy3"]
[Result "0-1"]
[WhiteElo "2520"]
[BlackElo "2712"]
[TimeControl "180+1"]
[EndTime "10:57:08 PDT"]
[Termination "platy3 won on time"]

1. Nf3 {[%clk 0:03:00.9]} 1... d5 {[%clk 0:02:58.4]} 2. c4 {[%clk 0:03:01]} 2...
d4 {[%clk 0:02:58.3]} 3. b4 {[%clk 0:03:01.1]} 3... c5 {[%clk 0:02:57.3]} 4. e3
{[%clk 0:03:01.4]} 4... dxe3 {[%clk 0:02:56.2]} 5. fxe3 {[%clk 0:03:01.9]} 5...
cxb4 {[%clk 0:02:56.8]} 6. d4 {[%clk 0:03:02.4]} 6... Nf6 {[%clk 0:02:57.4]} 7.
Bd3 {[%clk 0:02:58.4]} 7... g6 {[%clk 0:02:57.5]} 8. O-O {[%clk 0:02:40.2]} 8...
Bg7 {[%clk 0:02:57.4]} 9. Qa4+ {[%clk 0:02:24.9]} 9... Nc6 {[%clk 0:02:50.8]}
10. a3 {[%clk 0:01:58.4]} 10... bxa3 {[%clk 0:02:35.7]} 11. Bxa3 {[%clk
0:01:59.3]} 11... O-O {[%clk 0:02:35.4]} 12. Nc3 {[%clk 0:01:57.6]} 12... Bd7
{[%clk 0:02:19.9]} 13. Qb3 {[%clk 0:01:46.7]} 13... b6 {[%clk 0:02:17.6]} 14.
Rfd1 {[%clk 0:01:38.8]} 14... Rc8 {[%clk 0:02:16.7]} 15. Rac1 {[%clk 0:01:29.3]}
15... Bg4 {[%clk 0:02:14.4]} 16. Be2 {[%clk 0:01:18.3]} 16... Bh6 {[%clk
0:02:09.3]} 17. Nd5 {[%clk 0:01:09.3]} 17... Nxd5 {[%clk 0:02:03.7]} 18. cxd5
{[%clk 0:01:09.2]} 18... Na5 {[%clk 0:02:04.3]} 19. Rxc8 {[%clk 0:01:08.4]}
19... Nxb3 {[%clk 0:01:51.3]} 20. Rxd8 {[%clk 0:01:08.6]} 20... Bxe3+ {[%clk
0:01:51.5]} 21. Kf1 {[%clk 0:01:06.9]} 21... Rxd8 {[%clk 0:01:52.4]} 22. Rd3
{[%clk 0:01:01.6]} 22... Bxf3 {[%clk 0:01:38.3]} 23. Bxf3 {[%clk 0:00:31.5]}
23... Nd2+ {[%clk 0:01:38]} 24. Rxd2 {[%clk 0:00:31.3]} 24... Bxd2 {[%clk
0:01:37.6]} 25. Bxe7 {[%clk 0:00:31.6]} 25... Rd7 {[%clk 0:01:30.3]} 26. d6
{[%clk 0:00:31.5]} 26... Bb4 {[%clk 0:01:29.2]} 27. Bc6 {[%clk 0:00:31]} 27...
Rxe7 {[%clk 0:01:29.3]} 28. dxe7 {[%clk 0:00:31.9]} 28... Bxe7 {[%clk
0:01:29.8]} 29. Ke2 {[%clk 0:00:30.9]} 29... Bd6 {[%clk 0:01:30]} 30. h3 {[%clk
0:00:30.5]} 30... f5 {[%clk 0:01:29.4]} 31. Kd3 {[%clk 0:00:30.5]} 31... Kf7
{[%clk 0:01:29.8]} 32. Kc4 {[%clk 0:00:31]} 32... Ke6 {[%clk 0:01:30.2]} 33.
Bd5+ {[%clk 0:00:29.4]} 33... Kf6 {[%clk 0:01:29]} 34. Kb5 {[%clk 0:00:28.8]}
34... Bh2 {[%clk 0:01:29.1]} 35. Ka6 {[%clk 0:00:28.5]} 35... Bg1 {[%clk
0:01:29.4]} 36. Kxa7 {[%clk 0:00:16.8]} 36... Bxd4 {[%clk 0:01:29.9]} 37. Ka6
{[%clk 0:00:17.7]} 37... Ke5 {[%clk 0:01:28.4]} 38. Bg8 {[%clk 0:00:17.7]} 38...
h6 {[%clk 0:01:28.6]} 39. Kb5 {[%clk 0:00:18.6]} 39... Kf4 {[%clk 0:01:27.3]}
40. Kc4 {[%clk 0:00:18.8]} 40... Bc5 {[%clk 0:01:27.5]} 41. Bd5 {[%clk
0:00:18.8]} 41... Kg3 {[%clk 0:01:27.6]} 42. Bc6 {[%clk 0:00:19]} 42... g5
{[%clk 0:01:27.6]} 43. Kd3 {[%clk 0:00:19.6]} 43... Kf2 {[%clk 0:01:16.9]} 44.
Kc4 {[%clk 0:00:17.2]} 44... h5 {[%clk 0:01:13.2]} 45. Kd3 {[%clk 0:00:16.9]}
45... g4 {[%clk 0:01:11.1]} 46. hxg4 {[%clk 0:00:17.2]} 46... fxg4 {[%clk
0:01:11]} 47. Kd2 {[%clk 0:00:06.9]} 47... b5 {[%clk 0:01:08.1]} 48. Kc3 {[%clk
0:00:03.9]} 48... b4+ {[%clk 0:01:07.9]} 49. Kc4 {[%clk 0:00:04.1]} 49... Be7
{[%clk 0:01:05.5]} 50. Bd5 {[%clk 0:00:05]} 50... h4 {[%clk 0:01:04.7]} 51. Bc6
{[%clk 0:00:05.3]} 51... Kg3 {[%clk 0:01:04.4]} 52. Bd5 {[%clk 0:00:05.4]} 52...
h3 {[%clk 0:01:02.6]} 53. gxh3 {[%clk 0:00:06.3]} 53... gxh3 {[%clk 0:01:02.9]}
54. Kd3 {[%clk 0:00:06.6]} 54... Kf2 {[%clk 0:01:02.5]} 55. Bc6 {[%clk
0:00:05.7]} 55... h2 {[%clk 0:01:02.3]} 56. Bd5 {[%clk 0:00:05.5]} 56... Kg1
{[%clk 0:01:02.5]} 0-1

[Event "*** Titled Tuesday Blitz"]
[Site "Chess.com"]
[Date "2020.05.05"]
[Round "5"]
[White "serhanberat_ozdemir"]
[Black "Sosat98"]
[Result "1-0"]
[WhiteElo "2493"]
[BlackElo "2668"]
[TimeControl "180+1"]
[EndTime "10:57:08 PDT"]
[Termination "serhanberat_ozdemir won by resignation"]

1. e4 {[%clk 0:03:00.9]} 1... e5 {[%clk 0:02:59.8]} 2. Nf3 {[%clk 0:03:00.8]}
2... Nc6 {[%clk 0:03:00.2]} 3. d4 {[%clk 0:03:01.3]} 3... exd4 {[%clk
0:03:00.4]} 4. Bc4 {[%clk 0:03:02]} 4... Bc5 {[%clk 0:02:54.1]} 5. c3 {[%clk
0:03:01.5]} 5... dxc3 {[%clk 0:02:53.2]} 6. Bxf7+ {[%clk 0:03:01.3]} 6... Kxf7
{[%clk 0:02:53.5]} 7. Qd5+ {[%clk 0:03:01.9]} 7... Kf8 {[%clk 0:02:53.9]} 8.
Qxc5+ {[%clk 0:03:02]} 8... d6 {[%clk 0:02:52.6]} 9. Qe3 {[%clk 0:03:02.6]} 9...
Qf6 {[%clk 0:02:39.9]} 10. Nxc3 {[%clk 0:03:00.4]} 10... Nge7 {[%clk 0:02:40.4]}
11. O-O {[%clk 0:02:42.9]} 11... Bg4 {[%clk 0:02:39.8]} 12. Nd2 {[%clk
0:02:22.2]} 12... Re8 {[%clk 0:02:16.6]} 13. h3 {[%clk 0:02:14.4]} 13... Be6
{[%clk 0:01:11.4]} 14. f4 {[%clk 0:02:09]} 14... Qd4 {[%clk 0:01:11.5]} 15. Nf3
{[%clk 0:02:07]} 15... Qxe3+ {[%clk 0:01:04]} 16. Bxe3 {[%clk 0:02:07.9]} 16...
Bc4 {[%clk 0:01:04.5]} 17. Rfe1 {[%clk 0:02:06.1]} 17... g6 {[%clk 0:00:55.3]}
18. Rad1 {[%clk 0:02:01.9]} 18... Kg7 {[%clk 0:00:46.5]} 19. Kf2 {[%clk
0:01:54.5]} 19... Rhf8 {[%clk 0:00:43.5]} 20. b3 {[%clk 0:01:54.9]} 20... Bg8
{[%clk 0:00:40.9]} 21. g4 {[%clk 0:01:47.1]} 21... h6 {[%clk 0:00:39.6]} 22. Kg3
{[%clk 0:01:45.7]} 22... b6 {[%clk 0:00:37.4]} 23. Nd4 {[%clk 0:01:38.1]} 23...
Nxd4 {[%clk 0:00:36.9]} 24. Bxd4+ {[%clk 0:01:39]} 24... Kh7 {[%clk 0:00:37.5]}
25. Nb5 {[%clk 0:01:36.7]} 25... Rc8 {[%clk 0:00:04]} 26. Bb2 {[%clk 0:01:37.1]}
26... a6 {[%clk 0:00:03.8]} 27. Na3 {[%clk 0:01:31.6]} 27... Rce8 {[%clk
0:00:04.3]} 28. Nc2 {[%clk 0:01:28.5]} 28... d5 {[%clk 0:00:02.4]} 29. e5 {[%clk
0:01:25.8]} 29... c5 {[%clk 0:00:02.9]} 30. b4 {[%clk 0:01:24.9]} 30... d4
{[%clk 0:00:03.4]} 31. bxc5 {[%clk 0:01:23.4]} 31... bxc5 {[%clk 0:00:04.3]} 32.
Ba3 {[%clk 0:01:22.1]} 32... Rc8 {[%clk 0:00:04.6]} 33. e6 {[%clk 0:01:16.7]}
33... Rfd8 {[%clk 0:00:03.9]} 34. Nxd4 {[%clk 0:01:12]} 34... Rxd4 {[%clk
0:00:04]} 35. Rxd4 {[%clk 0:01:12.2]} 35... cxd4 {[%clk 0:00:04.9]} 36. Bxe7
{[%clk 0:01:11.2]} 36... Rc3+ {[%clk 0:00:05.8]} 37. Kf2 {[%clk 0:01:03.2]}
37... Rc2+ {[%clk 0:00:06.2]} 38. Kf3 {[%clk 0:00:59]} 38... Rc3+ {[%clk
0:00:06.4]} 39. Ke4 {[%clk 0:00:55.4]} 39... Bxe6 {[%clk 0:00:05.6]} 40. Kxd4
{[%clk 0:00:55.9]} 40... Rc4+ {[%clk 0:00:06.2]} 41. Ke5 {[%clk 0:00:53.9]}
41... Bg8 {[%clk 0:00:05]} 42. Rd1 {[%clk 0:00:48]} 42... Ra4 {[%clk 0:00:04.7]}
43. Rd7 {[%clk 0:00:46.3]} 43... Ra5+ {[%clk 0:00:04.9]} 44. Kf6 {[%clk
0:00:38.5]} 44... Bxa2 {[%clk 0:00:05.5]} 45. Bb4+ {[%clk 0:00:35.3]} 1-0

[Event "*** Titled Tuesday Blitz"]
[Site "Chess.com"]
[Date "2020.05.05"]
[Round "5"]
[White "Pultis"]
[Black "bazar-wokzal"]
[Result "0-1"]
[WhiteElo "2783"]
[BlackElo "2541"]
[TimeControl "180+1"]
[EndTime "10:57:08 PDT"]
[Termination "bazar-wokzal won by resignation"]

1. b3 {[%clk 0:03:00.9]} 1... e5 {[%clk 0:02:58.9]} 2. Bb2 {[%clk 0:03:00.5]}
2... Nc6 {[%clk 0:02:58.5]} 3. e3 {[%clk 0:03:00.1]} 3... d5 {[%clk 0:02:58.7]}
4. Bb5 {[%clk 0:02:58.4]} 4... Bd6 {[%clk 0:02:58.7]} 5. f4 {[%clk 0:02:56.8]}
5... Qe7 {[%clk 0:02:48]} 6. Nf3 {[%clk 0:02:52.1]} 6... Bg4 {[%clk 0:02:39.3]}
7. O-O {[%clk 0:02:44.3]} 7... Bxf3 {[%clk 0:02:26.7]} 8. Qxf3 {[%clk
0:02:43.5]} 8... Nf6 {[%clk 0:02:27.2]} 9. fxe5 {[%clk 0:02:40.1]} 9... Bxe5
{[%clk 0:02:26.4]} 10. Nc3 {[%clk 0:02:40.4]} 10... O-O {[%clk 0:02:19.2]} 11.
Rae1 {[%clk 0:02:33.8]} 11... Bxc3 {[%clk 0:02:10.6]} 12. Bxc3 {[%clk
0:02:31.4]} 12... Ne4 {[%clk 0:02:10.8]} 13. Bd3 {[%clk 0:02:02.8]} 13... Nxc3
{[%clk 0:02:00.6]} 14. dxc3 {[%clk 0:02:03.7]} 14... Rad8 {[%clk 0:01:57.1]} 15.
Kh1 {[%clk 0:02:04.2]} 15... Ne5 {[%clk 0:01:55.6]} 16. Qf4 {[%clk 0:02:04.7]}
16... Rd6 {[%clk 0:01:49.9]} 17. Qd4 {[%clk 0:02:03.7]} 17... b6 {[%clk
0:01:45.4]} 18. Rf5 {[%clk 0:02:02.1]} 18... f6 {[%clk 0:01:42.1]} 19. e4 {[%clk
0:01:58.8]} 19... Nxd3 {[%clk 0:01:29.9]} 20. Qxd3 {[%clk 0:01:56.9]} 20... dxe4
{[%clk 0:01:26.7]} 21. Qc4+ {[%clk 0:01:56.5]} 21... Qe6 {[%clk 0:01:18.8]} 22.
Qxc7 {[%clk 0:01:56.5]} 22... Rd2 {[%clk 0:01:07.1]} 23. Rf4 {[%clk 0:01:52.3]}
23... e3 {[%clk 0:01:00.5]} 24. h3 {[%clk 0:01:50.7]} 24... Rxc2 {[%clk
0:00:53.6]} 25. Rf3 {[%clk 0:01:46]} 25... e2 {[%clk 0:00:44.5]} 26. Qg3 {[%clk
0:01:46.1]} 26... Re8 {[%clk 0:00:41.2]} 27. Rd3 {[%clk 0:01:43.4]} 27... Rxa2
{[%clk 0:00:39.4]} 28. c4 {[%clk 0:01:37.1]} 28... a5 {[%clk 0:00:37.5]} 29. Rd6
{[%clk 0:01:32.5]} 29... Qe5 {[%clk 0:00:37.4]} 30. Qxe5 {[%clk 0:01:32.8]}
30... Rxe5 {[%clk 0:00:37.2]} 31. Rxb6 {[%clk 0:01:33.7]} 31... Rb2 {[%clk
0:00:33.9]} 32. Kg1 {[%clk 0:01:26.1]} 32... a4 {[%clk 0:00:33.6]} 33. b4 {[%clk
0:01:26.6]} 33... a3 {[%clk 0:00:33.3]} 34. Ra6 {[%clk 0:01:25]} 34... a2 {[%clk
0:00:33.1]} 35. g4 {[%clk 0:01:12.7]} 35... h5 {[%clk 0:00:28.3]} 36. b5 {[%clk
0:01:11]} 36... hxg4 {[%clk 0:00:28.1]} 37. hxg4 {[%clk 0:01:11.9]} 37... Re4
{[%clk 0:00:28.2]} 38. Kf2 {[%clk 0:01:10.2]} 38... Rf4+ {[%clk 0:00:25.2]} 39.
Ke3 {[%clk 0:01:06.8]} 39... Rf1 {[%clk 0:00:24.9]} 40. Ra8+ {[%clk 0:00:59]}
40... Kf7 {[%clk 0:00:24]} 41. Ra7+ {[%clk 0:00:59]} 41... Ke6 {[%clk
0:00:22.9]} 42. Ra6+ {[%clk 0:00:53.9]} 42... Ke5 {[%clk 0:00:21.8]} 0-1

[Event "*** Titled Tuesday Blitz"]
[Site "Chess.com"]
[Date "2020.05.05"]
[Round "5"]
[White "Azatic"]
[Black "2nd_life"]
[Result "1-0"]
[WhiteElo "2625"]
[BlackElo "2420"]
[TimeControl "180+1"]
[EndTime "10:57:08 PDT"]
[Termination "Azatic won by resignation"]

1. e4 {[%clk 0:03:00.9]} 1... d5 {[%clk 0:02:57]} 2. exd5 {[%clk 0:03:00.2]}
2... Qxd5 {[%clk 0:02:57.9]} 3. Nc3 {[%clk 0:03:00.7]} 3... Qd6 {[%clk
0:02:58.3]} 4. d4 {[%clk 0:03:00.1]} 4... c6 {[%clk 0:02:58.7]} 5. Nf3 {[%clk
0:02:57.4]} 5... Nf6 {[%clk 0:02:58.8]} 6. h3 {[%clk 0:02:56]} 6... Bf5 {[%clk
0:02:52.6]} 7. Bd3 {[%clk 0:02:56.1]} 7... Bxd3 {[%clk 0:02:44.9]} 8. Qxd3
{[%clk 0:02:54.9]} 8... e6 {[%clk 0:02:44.5]} 9. O-O {[%clk 0:02:54.7]} 9...
Nbd7 {[%clk 0:02:43.4]} 10. b3 {[%clk 0:02:48.4]} 10... Qc7 {[%clk 0:02:41.4]}
11. Bb2 {[%clk 0:02:48]} 11... Be7 {[%clk 0:02:33.1]} 12. Rfe1 {[%clk
0:02:40.2]} 12... O-O {[%clk 0:02:32.4]} 13. Ne2 {[%clk 0:02:36.1]} 13... Rad8
{[%clk 0:02:14.2]} 14. Ng3 {[%clk 0:02:27.3]} 14... Rfe8 {[%clk 0:02:05.2]} 15.
Rad1 {[%clk 0:02:13.5]} 15... a6 {[%clk 0:01:43.9]} 16. c4 {[%clk 0:02:11.1]}
16... Bf8 {[%clk 0:01:25.1]} 17. Qc3 {[%clk 0:01:46.4]} 17... g6 {[%clk
0:01:12.8]} 18. a3 {[%clk 0:01:16.4]} 18... Bg7 {[%clk 0:01:12.1]} 19. b4 {[%clk
0:01:16.5]} 19... Qc8 {[%clk 0:00:51]} 20. Qe3 {[%clk 0:01:04.9]} 20... b5
{[%clk 0:00:47.7]} 21. Rc1 {[%clk 0:01:03.2]} 21... Nb6 {[%clk 0:00:43.3]} 22.
cxb5 {[%clk 0:00:57.1]} 22... axb5 {[%clk 0:00:42]} 23. Ne5 {[%clk 0:00:56.7]}
23... Nfd5 {[%clk 0:00:37.2]} 24. Qf3 {[%clk 0:00:53.1]} 24... Bxe5 {[%clk
0:00:28.2]} 25. dxe5 {[%clk 0:00:52.3]} 25... Nc4 {[%clk 0:00:28.3]} 26. Ba1
{[%clk 0:00:38.3]} 26... Rd7 {[%clk 0:00:22.6]} 27. Ne4 {[%clk 0:00:37.5]} 27...
Ra7 {[%clk 0:00:21.1]} 28. Nf6+ {[%clk 0:00:19.9]} 28... Kg7 {[%clk 0:00:19.5]}
29. Qg4 {[%clk 0:00:16]} 29... Ree7 {[%clk 0:00:15.7]} 30. Bd4 {[%clk
0:00:14.5]} 30... Rxa3 {[%clk 0:00:14.4]} 31. Bc5 {[%clk 0:00:14.6]} 31... Nxf6
{[%clk 0:00:10]} 32. exf6+ {[%clk 0:00:13.5]} 32... Kxf6 {[%clk 0:00:10.9]} 33.
Qh4+ {[%clk 0:00:13.1]} 33... g5 {[%clk 0:00:10]} 34. Qh6+ {[%clk 0:00:12.9]}
34... Kf5 {[%clk 0:00:10.3]} 35. Bxe7 {[%clk 0:00:13.1]} 1-0

[Event "*** Titled Tuesday Blitz"]
[Site "Chess.com"]
[Date "2020.05.05"]
[Round "5"]
[White "hongnhung1234"]
[Black "saraswathii"]
[Result "0-1"]
[WhiteElo "2228"]
[BlackElo "2328"]
[TimeControl "180+1"]
[EndTime "10:57:09 PDT"]
[Termination "saraswathii won on time"]

1. e4 {[%clk 0:03:00.9]} 1... c5 {[%clk 0:02:59.6]} 2. Nc3 {[%clk 0:03:00.7]}
2... e6 {[%clk 0:02:59.6]} 3. f4 {[%clk 0:03:00.6]} 3... d5 {[%clk 0:02:59.1]}
4. Bb5+ {[%clk 0:02:59.6]} 4... Bd7 {[%clk 0:02:58.3]} 5. Bxd7+ {[%clk
0:02:58.8]} 5... Qxd7 {[%clk 0:02:59.2]} 6. Nf3 {[%clk 0:02:57.4]} 6... Nc6
{[%clk 0:02:56.2]} 7. d3 {[%clk 0:02:56.4]} 7... Be7 {[%clk 0:02:55]} 8. O-O
{[%clk 0:02:55.8]} 8... Nf6 {[%clk 0:02:54.6]} 9. e5 {[%clk 0:02:54.9]} 9... Ng4
{[%clk 0:02:49.3]} 10. Qe1 {[%clk 0:02:45.4]} 10... O-O {[%clk 0:02:43.8]} 11.
Ne2 {[%clk 0:02:23.8]} 11... Nb4 {[%clk 0:02:38.8]} 12. Qg3 {[%clk 0:02:05.6]}
12... Nh6 {[%clk 0:02:25.1]} 13. Ne1 {[%clk 0:01:30.7]} 13... Nf5 {[%clk
0:02:21.3]} 14. Qh3 {[%clk 0:01:29.9]} 14... f6 {[%clk 0:02:15.7]} 15. exf6
{[%clk 0:01:13.6]} 15... Bxf6 {[%clk 0:02:14.6]} 16. c3 {[%clk 0:01:13.7]} 16...
Nc6 {[%clk 0:02:10.8]} 17. Ng3 {[%clk 0:01:13.6]} 17... Rae8 {[%clk 0:02:03.7]}
18. Nf3 {[%clk 0:01:10.9]} 18... Nxg3 {[%clk 0:01:58.8]} 19. Qxg3 {[%clk
0:01:07.3]} 19... Ne7 {[%clk 0:01:55.7]} 20. Bd2 {[%clk 0:00:54.7]} 20... Nf5
{[%clk 0:01:55.2]} 21. Qg4 {[%clk 0:00:55.1]} 21... Qb5 {[%clk 0:01:53.5]} 22.
Ne5 {[%clk 0:00:45.9]} 22... Bxe5 {[%clk 0:01:52.2]} 23. fxe5 {[%clk 0:00:45.8]}
23... Qxd3 {[%clk 0:01:51.9]} 24. Bh6 {[%clk 0:00:45.2]} 24... Nxh6 {[%clk
0:01:49.1]} 25. Rxf8+ {[%clk 0:00:41.3]} 25... Kxf8 {[%clk 0:01:48.5]} 26. Qh5
{[%clk 0:00:29.5]} 26... Re7 {[%clk 0:01:40.5]} 27. Rf1+ {[%clk 0:00:27.2]}
27... Rf7 {[%clk 0:01:40.5]} 28. Re1 {[%clk 0:00:25.3]} 28... Qd2 {[%clk
0:01:37.2]} 29. Qh4 {[%clk 0:00:25.4]} 29... Ke8 {[%clk 0:01:32.6]} 30. h3
{[%clk 0:00:22.9]} 30... Nf5 {[%clk 0:01:31.2]} 31. Qf2 {[%clk 0:00:18]} 31...
Qxf2+ {[%clk 0:01:29.7]} 32. Kxf2 {[%clk 0:00:18.9]} 32... Ne7+ {[%clk
0:01:27.7]} 33. Ke3 {[%clk 0:00:18.4]} 33... Nc6 {[%clk 0:01:28.1]} 34. Kd3
{[%clk 0:00:17.9]} 34... Rf5 {[%clk 0:01:28]} 35. g4 {[%clk 0:00:18.2]} 35...
Rxe5 {[%clk 0:01:28.1]} 36. Rf1 {[%clk 0:00:19.1]} 36... d4 {[%clk 0:01:25.9]}
37. cxd4 {[%clk 0:00:18.4]} 37... cxd4 {[%clk 0:01:26.8]} 38. Rc1 {[%clk
0:00:16.8]} 38... Re3+ {[%clk 0:01:26.3]} 39. Kc4 {[%clk 0:00:17.3]} 39... Rxh3
{[%clk 0:01:25.9]} 40. Re1 {[%clk 0:00:16.7]} 40... e5 {[%clk 0:01:26]} 41. b4
{[%clk 0:00:16.6]} 41... a6 {[%clk 0:01:25.6]} 42. a4 {[%clk 0:00:16]} 42...
Rc3+ {[%clk 0:01:25.6]} 43. Kd5 {[%clk 0:00:16.5]} 43... Re3 {[%clk 0:01:25.7]}
44. Rb1 {[%clk 0:00:13.5]} 44... Ne7+ {[%clk 0:01:19.7]} 45. Ke6 {[%clk
0:00:12.1]} 45... d3 {[%clk 0:01:18.2]} 46. Rd1 {[%clk 0:00:09.9]} 46... e4
{[%clk 0:01:17.5]} 47. g5 {[%clk 0:00:08.4]} 47... Re2 {[%clk 0:01:16.2]} 48. g6
{[%clk 0:00:07.9]} 48... Nxg6 {[%clk 0:01:12.7]} 49. Rc1 {[%clk 0:00:07.1]}
49... Ne7 {[%clk 0:01:10.3]} 50. Rc7 {[%clk 0:00:07.5]} 50... Rf2 {[%clk
0:01:07.4]} 51. Rxe7+ {[%clk 0:00:07.2]} 51... Kf8 {[%clk 0:01:05.7]} 52. Rd7
{[%clk 0:00:03]} 52... g5 {[%clk 0:01:01.8]} 0-1

[Event "*** Titled Tuesday Blitz"]
[Site "Chess.com"]
[Date "2020.05.05"]
[Round "5"]
[White "rynos0411"]
[Black "ChessTraining77"]
[Result "0-1"]
[WhiteElo "2378"]
[BlackElo "2539"]
[TimeControl "180+1"]
[EndTime "10:57:09 PDT"]
[Termination "ChessTraining77 won by resignation"]

1. e4 {[%clk 0:03:00.9]} 1... e5 {[%clk 0:02:58.8]} 2. Nf3 {[%clk 0:03:00.2]}
2... Nc6 {[%clk 0:02:58.8]} 3. Bb5 {[%clk 0:03:00.7]} 3... a6 {[%clk 0:02:58.5]}
4. Bxc6 {[%clk 0:02:52.2]} 4... dxc6 {[%clk 0:02:57.9]} 5. O-O {[%clk
0:02:53.1]} 5... Qf6 {[%clk 0:02:49.4]} 6. d4 {[%clk 0:02:52.5]} 6... exd4
{[%clk 0:02:49.1]} 7. Qxd4 {[%clk 0:02:51]} 7... Qxd4 {[%clk 0:02:48.3]} 8. Nxd4
{[%clk 0:02:51.9]} 8... Bd7 {[%clk 0:02:48.5]} 9. Bf4 {[%clk 0:02:45.9]} 9...
O-O-O {[%clk 0:02:47.8]} 10. Nc3 {[%clk 0:02:40.1]} 10... Ne7 {[%clk 0:02:46.5]}
11. Rad1 {[%clk 0:02:35.7]} 11... Ng6 {[%clk 0:02:45.9]} 12. Bg3 {[%clk
0:02:35.3]} 12... h5 {[%clk 0:02:44]} 13. h3 {[%clk 0:02:30.2]} 13... h4 {[%clk
0:02:42.3]} 14. Bh2 {[%clk 0:02:30.1]} 14... Bb4 {[%clk 0:02:39.7]} 15. Nce2
{[%clk 0:02:27.8]} 15... Rhe8 {[%clk 0:02:37.8]} 16. f3 {[%clk 0:02:22]} 16...
c5 {[%clk 0:02:27]} 17. c3 {[%clk 0:01:20.6]} 17... Ba5 {[%clk 0:02:14.1]} 18.
Nb3 {[%clk 0:01:19.5]} 18... Bb6 {[%clk 0:02:13]} 19. Nd2 {[%clk 0:01:18.6]}
19... Be6 {[%clk 0:02:03]} 20. b3 {[%clk 0:01:03.5]} 20... c4+ {[%clk
0:02:00.6]} 21. Kh1 {[%clk 0:01:03.2]} 21... cxb3 {[%clk 0:02:00.1]} 22. axb3
{[%clk 0:01:03.2]} 22... Rd3 {[%clk 0:01:56.5]} 23. Nc4 {[%clk 0:00:43.6]} 23...
Bxc4 {[%clk 0:01:52]} 24. bxc4 {[%clk 0:00:43.4]} 24... Red8 {[%clk 0:01:50.7]}
25. Rxd3 {[%clk 0:00:38.1]} 25... Rxd3 {[%clk 0:01:49.7]} 26. f4 {[%clk
0:00:38.1]} 26... f6 {[%clk 0:01:42.3]} 27. e5 {[%clk 0:00:36.2]} 27... f5
{[%clk 0:01:38]} 28. Bg1 {[%clk 0:00:24.2]} 28... Bxg1 {[%clk 0:01:32.4]} 29.
Kxg1 {[%clk 0:00:25.1]} 29... Nf8 {[%clk 0:01:29.9]} 30. Nd4 {[%clk 0:00:24.7]}
30... g6 {[%clk 0:01:29.3]} 31. Rf3 {[%clk 0:00:22.1]} 31... Rd1+ {[%clk
0:01:19.3]} 32. Kf2 {[%clk 0:00:20.6]} 32... c5 {[%clk 0:01:16.6]} 33. Nb3
{[%clk 0:00:19.6]} 33... Ne6 {[%clk 0:01:15.6]} 34. Ke2 {[%clk 0:00:18.4]} 34...
Rg1 {[%clk 0:01:14.2]} 35. Rf2 {[%clk 0:00:15.1]} 35... Rb1 {[%clk 0:01:12.9]}
36. Nd2 {[%clk 0:00:13.3]} 36... Rb2 {[%clk 0:01:11.6]} 37. Kd3 {[%clk 0:00:13]}
37... a5 {[%clk 0:01:11.3]} 38. Rf1 {[%clk 0:00:12.6]} 38... a4 {[%clk
0:01:10.7]} 39. Nf3 {[%clk 0:00:05.2]} 39... Nxf4+ {[%clk 0:01:08.1]} 40. Ke3
{[%clk 0:00:05]} 40... Nxg2+ {[%clk 0:01:08.2]} 41. Kd3 {[%clk 0:00:05]} 41...
Nf4+ {[%clk 0:01:08]} 42. Ke3 {[%clk 0:00:05.3]} 42... Ne6 {[%clk 0:01:05.3]}
43. Nxh4 {[%clk 0:00:05.7]} 43... a3 {[%clk 0:01:04.7]} 44. Ra1 {[%clk 0:00:05]}
44... a2 {[%clk 0:01:04.2]} 45. Nxg6 {[%clk 0:00:05.3]} 45... Rh2 {[%clk
0:01:02.5]} 46. Ne7+ {[%clk 0:00:05]} 46... Kd7 {[%clk 0:01:01.1]} 47. Nxf5
{[%clk 0:00:05.9]} 47... Kc6 {[%clk 0:00:51.2]} 48. Ne7+ {[%clk 0:00:04.8]}
48... Kb6 {[%clk 0:00:50]} 49. Nd5+ {[%clk 0:00:05.7]} 49... Ka5 {[%clk
0:00:49.9]} 50. Kd3 {[%clk 0:00:06.6]} 50... Ka4 {[%clk 0:00:50]} 51. Nb6+
{[%clk 0:00:06.1]} 51... Ka3 {[%clk 0:00:49.8]} 52. Nd5 {[%clk 0:00:07]} 52...
Kb2 {[%clk 0:00:49.6]} 53. Rxa2+ {[%clk 0:00:07.5]} 53... Kxa2 {[%clk
0:00:48.1]} 54. Ne3 {[%clk 0:00:08.4]} 54... Rxh3 {[%clk 0:00:46.9]} 0-1

[Event "*** Titled Tuesday Blitz"]
[Site "Chess.com"]
[Date "2020.05.05"]
[Round "5"]
[White "Ceejay271"]
[Black "Mikhail_Golubev"]
[Result "1-0"]
[WhiteElo "2386"]
[BlackElo "2511"]
[TimeControl "180+1"]
[EndTime "10:57:09 PDT"]
[Termination "Ceejay271 won on time"]

1. Nf3 {[%clk 0:03:00.9]} 1... d6 {[%clk 0:02:58.9]} 2. d4 {[%clk 0:03:00.3]}
2... Nf6 {[%clk 0:02:58]} 3. c4 {[%clk 0:02:59.8]} 3... g6 {[%clk 0:02:57.5]} 4.
Nc3 {[%clk 0:03:00.4]} 4... Bg7 {[%clk 0:02:58]} 5. e4 {[%clk 0:03:01.1]} 5...
O-O {[%clk 0:02:58.3]} 6. Be2 {[%clk 0:03:01.7]} 6... e5 {[%clk 0:02:58.5]} 7.
d5 {[%clk 0:03:02.4]} 7... Qe8 {[%clk 0:02:56.4]} 8. h3 {[%clk 0:02:46.9]} 8...
Nh5 {[%clk 0:02:51]} 9. g3 {[%clk 0:02:46.2]} 9... f5 {[%clk 0:02:51]} 10. Ng5
{[%clk 0:02:42.9]} 10... Nf6 {[%clk 0:02:46.9]} 11. Bf3 {[%clk 0:02:42.2]} 11...
Na6 {[%clk 0:02:27.4]} 12. a3 {[%clk 0:02:39.3]} 12... h6 {[%clk 0:02:08.5]} 13.
Ne6 {[%clk 0:02:38.3]} 13... Bxe6 {[%clk 0:02:07.3]} 14. dxe6 {[%clk 0:02:37.9]}
14... Qxe6 {[%clk 0:02:06.6]} 15. exf5 {[%clk 0:02:36.9]} 15... Qxf5 {[%clk
0:02:06.7]} 16. Bxb7 {[%clk 0:02:32.6]} 16... Nc5 {[%clk 0:02:06.4]} 17. Bxa8
{[%clk 0:01:57.5]} 17... Nd3+ {[%clk 0:02:03.1]} 18. Ke2 {[%clk 0:01:57.2]}
18... Qxf2+ {[%clk 0:01:01]} 19. Kxd3 {[%clk 0:01:55.6]} 19... Nd7 {[%clk
0:01:00.2]} 20. Bd5+ {[%clk 0:01:46.6]} 20... Kh7 {[%clk 0:00:54.3]} 21. Ne4
{[%clk 0:01:44.6]} 21... Rf3+ {[%clk 0:00:48.3]} 22. Qxf3 {[%clk 0:01:42.9]}
22... Qxf3+ {[%clk 0:00:45.6]} 23. Kc2 {[%clk 0:01:39.9]} 23... Qe2+ {[%clk
0:00:07.8]} 24. Bd2 {[%clk 0:01:37.7]} 24... c6 {[%clk 0:00:07.5]} 25. Rae1
{[%clk 0:01:28.5]} 25... Qh5 {[%clk 0:00:07.1]} 26. Bxc6 {[%clk 0:01:18.4]}
26... Nb6 {[%clk 0:00:07.1]} 27. b3 {[%clk 0:01:12.9]} 27... Qf5 {[%clk
0:00:07.1]} 28. Kb2 {[%clk 0:00:17]} 28... Qc8 {[%clk 0:00:04.5]} 29. Bd5 {[%clk
0:00:16.8]} 29... Nxd5 {[%clk 0:00:04.5]} 30. cxd5 {[%clk 0:00:16.5]} 30... Qb7
{[%clk 0:00:04.7]} 31. Nc3 {[%clk 0:00:11.5]} 31... Qc7 {[%clk 0:00:02.6]} 32.
Re4 {[%clk 0:00:10]} 32... Qb6 {[%clk 0:00:02.4]} 33. Rhe1 {[%clk 0:00:09.6]}
33... Kg8 {[%clk 0:00:02.3]} 34. g4 {[%clk 0:00:09.3]} 34... Qf2 {[%clk
0:00:01.8]} 35. R4e2 {[%clk 0:00:08.4]} 35... Qf3 {[%clk 0:00:01.4]} 36. Re3
{[%clk 0:00:08.6]} 1-0